fUSD/lending_fUSD_20250720
["ID","MTS","AMOUNT","RATE_DAILY","PERIOD"]
[373388104,1752983432250,-392.92115914,0.00018521,2]
[373388105,1752983432260,-357.65,0.00018549,2]
[373388106,1752983432269,-164.77,0.00018578,2]
[373388107,1752983432279,-1174.6,0.00018578,2]
[373388108,1752983432291,-357.65,0.00018578,2]
[373388109,1752983432301,-250.0,0.0001859,2]
[373388110,1752983432310,-250.0,0.0001859,2]
[373388111,1752983432319,-8172.9,0.00018599,2]
[373388112,1752983432328,-299.99,0.00018599,4]
[373388113,1752983432341,-458.63,0.000186,2]
[373388115,1752983432356,-392.92115914,0.00018624,2]
[373388116,1752983432365,-392.92115914,0.00018728,2]
[373388118,1752983432375,-428.0,0.0001878,2]
[373388120,1752983432384,-167.3,0.00018789,2]
[373388122,1752983432393,-392.92115914,0.00018831,2]
[373388124,1752983432405,-168.0,0.0001884,2]
[373388126,1752983432414,-200.0,0.00018899,2]
[373388127,1752983432423,-392.92115914,0.00018934,2]
[373388129,1752983432432,-200.0,0.00018937,2]
[373388130,1752983432442,-200.0,0.00018947,2]
[373388132,1752983432451,-200.0,0.00018973,2]
[373388134,1752983432460,-200.0,0.00019025,2]
[373388137,1752983432471,-392.92115914,0.00019038,2]
[373388139,1752983432480,-159.94938591,0.0001907,2]
[373388141,1752983432489,-187.50402162,0.00019078,2]
[373388143,1752983432498,-187.39094581,0.00019078,2]
[373388146,1752983432507,-2665.17445915,0.00019078,2]
[373388149,1752983432517,-5000.0,0.00019078,2]
[373388152,1752983432526,-1262.06,0.00019097,2]
[373388154,1752983432535,-645.677,0.00019115,2]
[373388156,1752983432544,-461.107936,0.00019116,2]
[373388158,1752983432554,-159.94938587,0.00019134,2]
[373388161,1752983432564,-226.18,0.00019134,2]
[373388162,1752983432573,-420.0,0.00019135,2]
[373388164,1752983432582,-392.92115914,0.00019141,2]
[373388166,1752983432591,-3786.54132756,0.00019153,2]
[373388168,1752983432600,-160596.993931,0.0001917,2]
[373388170,1752983432609,-1315.868427,0.0001917,2]
[373388171,1752983432664,-1649.88212208,0.0001917,2]
[373388172,1752983432679,-548.56868301,0.0001917,2]
[373388174,1752983432696,-503.35998411,0.0001917,2]
[373388176,1752983432705,-255.38104417,0.00019173,2]
[373388178,1752983432717,-244.61895583,0.00019173,2]
[373388180,1752983432727,-500.0,0.00019173,2]
[373388182,1752983432736,-500.0,0.00019173,2]
[373388184,1752983432745,-509.20696183,0.00019173,2]
[373388186,1752983432755,-500.0,0.00019173,2]
[373388188,1752983432763,-502.72703854,0.00019173,2]
[373388190,1752983432773,-275.39048574,0.00019173,2]
[373388192,1752983432782,-500.0,0.00019173,2]
[373388194,1752983432791,-103.3957451,0.00019177,2]
[373388196,1752983432803,-82.12090346,0.00019177,2]
[373388198,1752983432812,-300.0,0.00019177,2]
[373388200,1752983432821,-61.80092934,0.00019177,2]
[373388441,1752983438475,-163.06380679,0.00019078,2]
[373388442,1752983438485,-113.65979008,0.00019177,2]
[373388443,1752983438530,-27.65916132,0.00019177,2]
[373388444,1752983438539,-254.38377495,0.00019177,2]
[373388445,1752983438548,-122117.10850709,0.00019178,2]
[373388446,1752983438557,-5759.8527337,0.00019178,2]
[373388447,1752983438566,-152.135731,0.00019178,2]
[373388448,1752983438576,-152.878935,0.00019178,2]
[373388449,1752983438585,-405.909386,0.00019178,2]
[373388450,1752983438595,-224.92713,0.00019178,2]
[373388451,1752983438604,-347.586308,0.00019178,2]
[373388452,1752983438613,-524.535421,0.00019178,2]
[373388453,1752983438622,-153.663042,0.00019178,2]
[373388454,1752983438631,-182.381101,0.00019178,2]
[373388455,1752983438641,-151.0,0.00019178,2]
[373388456,1752983438650,-151.0,0.00019178,2]
[373388457,1752983438661,-153.666057,0.00019178,2]
[373388458,1752983438671,-151.0,0.00019178,2]
[373388459,1752983438680,-151.0,0.00019178,2]
[373388460,1752983438689,-151.0,0.00019178,2]
[373388461,1752983438698,-151.0,0.00019178,2]
[373388462,1752983438708,-151.910655,0.00019178,2]
[373388463,1752983438717,-500.0,0.00019178,2]
[373388464,1752983438726,-151.0,0.00019178,2]
[373388465,1752983438735,-151.0,0.00019178,2]
[373388466,1752983438744,-480.0,0.00019178,2]
[373388467,1752983438754,-503.497268,0.00019178,2]
[373388468,1752983438763,-520.0,0.00019178,2]
[373388469,1752983438772,-480.0,0.00019178,2]
[373388470,1752983438782,-480.0,0.00019178,2]
[373388471,1752983438791,-515.24227714,0.00019178,2]
[373388472,1752983438800,-505.92730038,0.00019178,2]
[373388473,1752983438810,-504.62854495,0.00019178,2]
[373388474,1752983438819,-512.56240337,0.00019178,2]
[373388475,1752983438828,-1000.0,0.00019178,2]
[373388476,1752983438837,-480.0,0.00019178,2]
[373388477,1752983438847,-480.0,0.00019178,2]
[373388479,1752983438856,-151.0,0.00019178,2]
[373388481,1752983438865,-151.0,0.00019178,2]
[373388483,1752983438874,-151.0,0.00019178,2]
[373388485,1752983438883,-261.523642,0.00019178,2]
[373388487,1752983438892,-500.0,0.00019178,2]
[373388489,1752983438902,-480.0,0.00019178,2]
[373388491,1752983438913,-480.0,0.00019178,2]
[373388493,1752983438926,-500.0,0.00019178,2]
[373388495,1752983438935,-460.0,0.00019178,2]
[373388497,1752983438944,-151.0,0.00019178,2]
[373388499,1752983438954,-152.875549,0.00019178,2]
[373388501,1752983438964,-480.0,0.00019178,2]
[373388503,1752983438974,-480.0,0.00019178,2]
[373388505,1752983438983,-480.0,0.00019178,2]
[373388507,1752983438994,-390.45242965,0.00019178,2]
[373388509,1752983439003,-151.0,0.00019178,2]
[373388511,1752983439013,-151.0,0.00019178,2]
[373388513,1752983439022,-151.0,0.00019178,2]
[373388515,1752983439031,-151.0,0.00019178,2]
[373388517,1752983439040,-151.0,0.00019178,2]
[373388519,1752983439049,-502.00791925,0.00019178,2]
[373388521,1752983439059,-484.81417077,0.00019178,2]
[373388523,1752983439068,-151.0,0.00019178,2]
[373388525,1752983439077,-520.84159099,0.00019178,2]
[373388527,1752983439087,-491.78009888,0.00019178,2]
[373388529,1752983439096,-151.0,0.00019178,2]
[373388531,1752983439105,-151.0,0.00019178,2]
[373388533,1752983439115,-151.0,0.00019178,2]
[373388535,1752983439124,-480.0,0.00019178,2]
[373388537,1752983439133,-351.10211917,0.00019178,2]
[373388539,1752983439142,-151.0,0.00019178,2]
[373388541,1752983439151,-151.0,0.00019178,2]
[373388543,1752983439162,-484.7701979,0.00019178,2]
[373388545,1752983439172,-151.0,0.00019178,2]
[373388547,1752983439181,-151.0,0.00019178,2]
[373388549,1752983439190,-151.0,0.00019178,2]
[373388551,1752983439199,-480.0,0.00019178,2]
[373388553,1752983439209,-288.53450604,0.00019178,2]
[373388555,1752983439219,-488.81128941,0.00019178,2]
[373388557,1752983439228,-179.931965,0.00019178,2]
[373388559,1752983439237,-480.0,0.00019178,2]
[373388561,1752983439246,-494.33397546,0.00019178,2]
[373388563,1752983439256,-480.0,0.00019178,2]
[373388565,1752983439265,-184.107189,0.00019178,2]
[373388567,1752983439274,-480.0,0.00019178,2]
[373388569,1752983439283,-151.0,0.00019178,2]
[373388571,1752983439293,-557.65066267,0.00019178,2]
[373388573,1752983439302,-271.818218,0.00019178,2]
[373388575,1752983439312,-510.49729989,0.00019178,2]
[373388577,1752983439321,-485.69416209,0.00019178,2]
[373388579,1752983439330,-481.61525684,0.00019178,2]
[373388581,1752983439339,-484.92112751,0.00019178,2]
[373388583,1752983439349,-151.634049,0.00019178,2]
[373388585,1752983439357,-468.59468249,0.00019178,2]
[373388587,1752983439366,-480.0,0.00019178,2]
[373388589,1752983439376,-480.0,0.00019178,2]
[373388591,1752983439385,-480.0,0.00019178,2]
[373388593,1752983439394,-151.0,0.00019178,2]
[373388595,1752983439404,-512.58064719,0.00019178,2]
[373388597,1752983439413,-480.0,0.00019178,2]
[373388599,1752983439423,-151.0,0.00019178,2]
[373388602,1752983439432,-480.0,0.00019178,2]
[373388603,1752983439441,-480.0,0.00019178,2]
[373388605,1752983439450,-510.16689603,0.00019178,2]
[373388607,1752983439459,-151.0,0.00019178,2]
[373388609,1752983439468,-151.0,0.00019178,2]
[373388611,1752983439477,-480.0,0.00019178,2]
[373388613,1752983439487,-203.439184,0.00019178,2]
[373388615,1752983439496,-468.14352632,0.00019178,2]
[373388617,1752983439505,-194.427389,0.00019178,2]
[373388619,1752983439514,-151.0,0.00019178,2]
[373388621,1752983439523,-440.72814159,0.00019178,2]
[373388623,1752983439532,-468.26292417,0.00019178,2]
[373388625,1752983439541,-463.08540763,0.00019178,2]
[373388627,1752983439550,-469.01878401,0.00019178,2]
[373388629,1752983439559,-480.55830336,0.00019178,2]
[373388631,1752983439568,-480.0,0.00019178,2]
[373388633,1752983439578,-480.0,0.00019178,2]
[373388635,1752983439587,-484.95916809,0.00019178,2]
[373388637,1752983439596,-480.0,0.00019178,2]
[373388639,1752983439605,-151.0,0.00019178,2]
[373388641,1752983439615,-151.0,0.00019178,2]
[373388643,1752983439624,-151.0,0.00019178,2]
[373388645,1752983439633,-151.0,0.00019178,2]
[373388647,1752983439642,-157.311143,0.00019178,2]
[373388649,1752983439651,-480.0,0.00019178,2]
[373388651,1752983439662,-480.0,0.00019178,2]
[373388653,1752983439672,-480.0,0.00019178,2]
[373388655,1752983439682,-480.0,0.00019178,2]
[373388657,1752983439691,-151.0,0.00019178,2]
[373388659,1752983439701,-151.0,0.00019178,2]
[373388661,1752983439711,-151.0,0.00019178,2]
[373388663,1752983439720,-480.0,0.00019178,2]
[373388665,1752983439729,-480.0,0.00019178,2]
[373388667,1752983439739,-151.0,0.00019178,2]
[373388669,1752983439748,-151.0,0.00019178,2]
[373388671,1752983439757,-151.0,0.00019178,2]
[373388673,1752983439766,-151.0,0.00019178,2]
[373388675,1752983439775,-189.368757,0.00019178,2]
[373388677,1752983439785,-151.0,0.00019178,2]
[373388679,1752983439794,-151.0,0.00019178,2]
[373388681,1752983439803,-151.0,0.00019178,2]
[373388683,1752983439813,-151.0,0.00019178,2]
[373388685,1752983439822,-480.0,0.00019178,2]
[373388687,1752983439831,-151.0,0.00019178,2]
[373388689,1752983439841,-151.0,0.00019178,2]
[373388691,1752983439850,-480.0,0.00019178,2]
[373388693,1752983439859,-151.0,0.00019178,2]
[373388695,1752983439868,-201.510676,0.00019178,2]
[373388697,1752983439878,-480.0,0.00019178,2]
[373388699,1752983439887,-480.0,0.00019178,2]
[373388701,1752983439896,-150.0,0.00019178,2]
[373388703,1752983439907,-151.0,0.00019178,2]
[373388706,1752983439920,-480.0,0.00019178,2]
[373388709,1752983439932,-480.0,0.00019178,2]
[373388713,1752983439941,-480.0,0.00019178,2]
[373388718,1752983439950,-151.0,0.00019178,2]
[373388720,1752983439959,-500.0,0.00019178,2]
[373388722,1752983439969,-273.02280241,0.00019178,2]
[373388724,1752983439979,-150.0,0.00019178,2]
[373388726,1752983439988,-150.0,0.00019178,2]
[373388728,1752983439997,-488.57,0.00019178,2]
[373388730,1752983440007,-504.11794525,0.00019178,2]
[373388732,1752983440017,-150.0,0.00019178,2]
[373388734,1752983440026,-500.0,0.00019178,2]
[373388736,1752983440035,-151.0,0.00019178,2]
[373388738,1752983440045,-150.0,0.00019178,2]
[373388740,1752983440054,-151.0,0.00019178,2]
[373388742,1752983440063,-151.0,0.00019178,2]
[373388744,1752983440072,-150.0,0.00019178,2]
[373388746,1752983440081,-151.0,0.00019178,2]
[373388748,1752983440091,-151.0,0.00019178,2]
[373388750,1752983440101,-150.0,0.00019178,2]
[373388752,1752983440110,-151.0,0.00019178,2]
[373388754,1752983440119,-507.69047437,0.00019178,2]
[373388756,1752983440128,-526.79,0.00019178,2]
[373388758,1752983440137,-151.0,0.00019178,2]
[373388760,1752983440148,-480.0,0.00019178,2]
[373388763,1752983440158,-480.0,0.00019178,2]
[373388765,1752983440168,-480.0,0.00019178,2]
[373388767,1752983440178,-480.0,0.00019178,2]
[373388769,1752983440187,-521.32326677,0.00019178,2]
[373388771,1752983440197,-480.0,0.00019178,2]
[373388773,1752983440206,-506.29450919,0.00019178,2]
[373388775,1752983440215,-480.0,0.00019178,2]
[373388777,1752983440226,-200.0,0.00019178,2]
[373388779,1752983440235,-151.0,0.00019178,2]
[373388781,1752983440244,-151.0,0.00019178,2]
[373388783,1752983440254,-480.0,0.00019178,2]
[373388785,1752983440263,-151.0,0.00019178,2]
[373388787,1752983440273,-652.55,0.00019178,2]
[373388789,1752983440282,-510.90688625,0.00019178,2]
[373388791,1752983440291,-151.0,0.00019178,2]
[373388793,1752983440300,-189.07793,0.00019178,2]
[373388794,1752983440309,-480.0,0.00019178,2]
[373388796,1752983440319,-480.0,0.00019178,2]
[373388798,1752983440328,-759.79,0.00019178,2]
[373388800,1752983440338,-759.79,0.00019178,2]
[373388802,1752983440348,-759.79,0.00019178,2]
[373388804,1752983440357,-759.79,0.00019178,2]
[373388807,1752983440366,-514.60296655,0.00019178,2]
[373388809,1752983440375,-480.0,0.00019178,2]
[373388811,1752983440385,-151.0,0.00019178,2]
[373388813,1752983440394,-151.0,0.00019178,2]
[373388815,1752983440403,-151.0,0.00019178,2]
[373388817,1752983440414,-151.0,0.00019178,2]
[373388819,1752983440423,-151.0,0.00019178,2]
[373388820,1752983440433,-151.0,0.00019178,2]
[373388823,1752983440442,-151.0,0.00019178,2]
[373388825,1752983440452,-151.0,0.00019178,2]
[373388827,1752983440461,-151.0,0.00019178,2]
[373388829,1752983440470,-151.0,0.00019178,2]
[373388831,1752983440479,-151.0,0.00019178,2]
[373388833,1752983440489,-480.0,0.00019178,2]
[373388835,1752983440498,-506.91642819,0.00019178,2]
[373388837,1752983440507,-151.0,0.00019178,2]
[373388839,1752983440516,-442.82758314,0.00019178,2]
[373388841,1752983440525,-503.85577527,0.00019178,2]
[373388843,1752983440535,-287.058844,0.00019178,2]
[373388845,1752983440544,-480.0,0.00019178,2]
[373388847,1752983440553,-480.0,0.00019178,2]
[373388849,1752983440562,-601.64501553,0.00019178,2]
[373388851,1752983440572,-480.0,0.00019178,2]
[373388853,1752983440581,-496.94,0.00019178,2]
[373388855,1752983440590,-480.0,0.00019178,2]
[373388857,1752983440599,-488.66304844,0.00019178,2]
[373388859,1752983440608,-480.0,0.00019178,2]
[373388861,1752983440617,-480.0,0.00019178,2]
[373388863,1752983440626,-187.65171983,0.00019178,2]
[373388865,1752983440635,-480.0,0.00019178,2]
[373388867,1752983440645,-531.0,0.00019178,2]
[373388869,1752983440654,-151.0,0.00019178,2]
[373388871,1752983440664,-151.0,0.00019178,2]
[373388873,1752983440673,-151.0,0.00019178,2]
[373388875,1752983440682,-151.0,0.00019178,2]
[373388877,1752983440692,-480.0,0.00019178,2]
[373388879,1752983440701,-151.0,0.00019178,2]
[373388881,1752983440710,-480.0,0.00019178,2]
[373388883,1752983440719,-151.0,0.00019178,2]
[373388885,1752983440728,-528.20995142,0.00019178,2]
[373388887,1752983440737,-151.0,0.00019178,2]
[373388889,1752983440746,-800.28,0.00019178,2]
[373388891,1752983440755,-480.0,0.00019178,2]
[373388893,1752983440765,-480.0,0.00019178,2]
[373388895,1752983440774,-512.05800223,0.00019178,2]
[373388897,1752983440783,-485.73206797,0.00019178,2]
[373388899,1752983440792,-678.96,0.00019178,2]
[373388901,1752983440803,-484.10485703,0.00019178,2]
[373388903,1752983440812,-480.0,0.00019178,2]
[373388905,1752983440821,-482.73701785,0.00019178,2]
[373388907,1752983440831,-461.46421484,0.00019178,2]
[373388909,1752983440839,-480.0,0.00019178,2]
[373388911,1752983440849,-480.0,0.00019178,2]
[373388913,1752983440858,-480.0,0.00019178,2]
[373388915,1752983440867,-461.87953404,0.00019178,2]
[373388917,1752983440876,-480.0,0.00019178,2]
[373388919,1752983440885,-621.54,0.00019178,2]
[373388921,1752983440895,-484.00915482,0.00019178,2]
[373388923,1752983440904,-480.0,0.00019178,2]
[373388925,1752983440914,-480.0,0.00019178,2]
[373388927,1752983440927,-480.0,0.00019178,2]
[373388929,1752983440938,-460.0,0.00019178,2]
[373388931,1752983440947,-480.0,0.00019178,2]
[373388933,1752983440956,-480.0,0.00019178,2]
[373388935,1752983440966,-480.0,0.00019178,2]
[373388937,1752983440975,-596.67,0.00019178,2]
[373388939,1752983440985,-602.0,0.00019178,2]
[373388941,1752983440995,-480.0,0.00019178,2]
[373388943,1752983441005,-480.0,0.00019178,2]
[373388945,1752983441014,-500.41,0.00019178,2]
[373388947,1752983441023,-570.86,0.00019178,2]
[373388949,1752983441033,-480.0,0.00019178,2]
[373388951,1752983441042,-480.0,0.00019178,2]
[373388952,1752983441052,-500.0,0.00019178,2]
[373388954,1752983441061,-3264.72,0.00019178,2]
[373388956,1752983441072,-480.0,0.00019178,2]
[373388958,1752983441082,-524.25935692,0.00019178,2]
[373388961,1752983441091,-480.0,0.00019178,2]
[373388963,1752983441100,-480.0,0.00019178,2]
[373388964,1752983441110,-500.0,0.00019178,2]
[373388966,1752983441119,-480.0,0.00019178,2]
[373388968,1752983441129,-838.65,0.00019178,2]
[373388970,1752983441139,-480.0,0.00019178,2]
[373388972,1752983441148,-709.89,0.00019178,2]
[373388975,1752983441158,-713.6,0.00019178,2]
[373388977,1752983441168,-151.0,0.00019178,2]
[373388978,1752983441176,-151.0,0.00019178,2]
[373388980,1752983441185,-151.0,0.00019178,2]
[373388982,1752983441194,-151.0,0.00019178,2]
[373388984,1752983441204,-151.0,0.00019178,2]
[373388986,1752983441213,-151.0,0.00019178,2]
[373388988,1752983441222,-480.0,0.00019178,2]
[373388990,1752983441232,-151.0,0.00019178,2]
[373388991,1752983441241,-480.0,0.00019178,2]
[373388992,1752983441250,-151.0,0.00019178,2]
[373388993,1752983441259,-151.0,0.00019178,2]
[373388994,1752983441268,-233.680814,0.00019178,2]
[373388995,1752983441277,-480.0,0.00019178,2]
[373388996,1752983441286,-462.28809621,0.00019178,2]
[373388997,1752983441295,-151.0,0.00019178,2]
[373388998,1752983441305,-151.0,0.00019178,2]
[373388999,1752983441314,-151.0,0.00019178,2]
[373389000,1752983441323,-480.0,0.00019178,2]
[373389002,1752983441332,-151.0,0.00019178,2]
[373389004,1752983441341,-151.0,0.00019178,2]
[373389006,1752983441350,-480.0,0.00019178,2]
[373389008,1752983441359,-252.132458,0.00019178,2]
[373389010,1752983441368,-480.0,0.00019178,2]
[373389012,1752983441377,-480.0,0.00019178,2]
[373389014,1752983441386,-480.0,0.00019178,2]
[373389016,1752983441396,-894.47,0.00019178,2]
[373389018,1752983441405,-508.56419874,0.00019178,2]
[373389020,1752983441416,-691.65,0.00019178,2]
[373389022,1752983441425,-480.0,0.00019178,2]
[373389024,1752983441434,-480.0,0.00019178,2]
[373389026,1752983441444,-480.0,0.00019178,2]
[373389028,1752983441453,-480.0,0.00019178,2]
[373389030,1752983441462,-151.0,0.00019178,2]
[373389032,1752983441472,-151.0,0.00019178,2]
[373389034,1752983441481,-506.50805402,0.00019178,2]
[373389036,1752983441491,-204.220664,0.00019178,2]
[373389038,1752983441501,-480.0,0.00019178,2]
[373389040,1752983441510,-480.0,0.00019178,2]
[373389042,1752983441519,-1037.680897,0.00019178,2]
[373389044,1752983441528,-1037.680897,0.00019178,2]
[373389046,1752983441538,-167.704383,0.00019178,2]
[373389048,1752983441547,-513.37130834,0.00019178,2]
[373389050,1752983441556,-500.0,0.00019178,2]
[373389052,1752983441565,-151.0,0.00019178,2]
[373389054,1752983441574,-480.0,0.00019178,2]
[373389056,1752983441583,-480.0,0.00019178,2]
[373389058,1752983441592,-480.0,0.00019178,2]
[373389060,1752983441600,-165.049283,0.00019178,2]
[373389061,1752983441609,-480.0,0.00019178,2]
[373389063,1752983441618,-151.499889,0.00019178,2]
[373389066,1752983441628,-511.78,0.00019178,2]
[373389068,1752983441637,-480.0,0.00019178,2]
[373389070,1752983441647,-480.0,0.00019178,2]
[373389072,1752983441656,-483.06259769,0.00019178,2]
[373389074,1752983441666,-480.0,0.00019178,2]
[373389076,1752983441675,-485.10787446,0.00019178,2]
[373389077,1752983441684,-480.0,0.00019178,2]
[373389080,1752983441694,-480.0,0.00019178,2]
[373389082,1752983441703,-480.0,0.00019178,2]
[373389084,1752983441712,-481.61,0.00019178,2]
[373389086,1752983441722,-480.0,0.00019178,2]
[373389088,1752983441731,-1456.33,0.00019178,2]
[373389090,1752983441740,-480.0,0.00019178,2]
[373389092,1752983441750,-577.39,0.00019178,2]
[373389094,1752983441759,-480.0,0.00019178,2]
[373389096,1752983441768,-569.49,0.00019178,2]
[373389098,1752983441777,-480.0,0.00019178,2]
[373389100,1752983441786,-480.0,0.00019178,2]
[373389102,1752983441795,-507.5761899,0.00019178,2]
[373389103,1752983441804,-508.63418118,0.00019178,2]
[373389105,1752983441825,-480.0,0.00019178,2]
[373389107,1752983441846,-480.0,0.00019178,2]
[373389110,1752983441856,-480.0,0.00019178,2]
[373389111,1752983441865,-480.0,0.00019178,2]
[373389113,1752983441875,-151.0,0.00019178,2]
[373389115,1752983441884,-480.0,0.00019178,2]
[373389117,1752983441894,-151.0,0.00019178,2]
[373389119,1752983441903,-505.73764633,0.00019178,2]
[373389122,1752983441913,-211.370413,0.00019178,2]
[373389123,1752983441926,-618.04845519,0.00019178,2]
[373389125,1752983441935,-480.0,0.00019178,2]
[373389127,1752983441944,-480.0,0.00019178,2]
[373389129,1752983441954,-504.93634422,0.00019178,2]
[373389131,1752983441963,-495.68,0.00019178,2]
[373389133,1752983441973,-480.0,0.00019178,2]
[373389135,1752983441982,-480.0,0.00019178,2]
[373389137,1752983441992,-554.16768282,0.00019178,2]
[373389139,1752983442001,-480.0,0.00019178,2]
[373389141,1752983442012,-480.0,0.00019178,2]
[373389143,1752983442021,-480.0,0.00019178,2]
[373389145,1752983442030,-577.49325454,0.00019178,2]
[373389147,1752983442039,-480.0,0.00019178,2]
[373389149,1752983442050,-480.0,0.00019178,2]
[373389151,1752983442059,-480.0,0.00019178,2]
[373389153,1752983442068,-480.0,0.00019178,2]
[373389155,1752983442078,-507.24377808,0.00019178,2]
[373389157,1752983442087,-1715.52,0.00019178,2]
[373389159,1752983442096,-506.63069054,0.00019178,2]
[373389161,1752983442107,-480.0,0.00019178,2]
[373389163,1752983442117,-877.24,0.00019178,2]
[373389165,1752983442127,-510.36909322,0.00019178,2]
[373389167,1752983442137,-480.0,0.00019178,2]
[373389169,1752983442147,-504.09101935,0.00019178,2]
[373389171,1752983442156,-480.0,0.00019178,2]
[373389173,1752983442166,-480.0,0.00019178,2]
[373389175,1752983442176,-510.25838516,0.00019178,2]
[373389177,1752983442186,-223.32726017,0.00019178,2]
[373389179,1752983442195,-480.0,0.00019178,2]
[373389181,1752983442205,-510.99973316,0.00019178,2]
[373389206,1752983442419,-480.0,0.00019178,2]
[373389208,1752983442429,-480.0,0.00019178,2]
[373389209,1752983442438,-151.0,0.00019178,2]
[373389212,1752983442447,-151.0,0.00019178,2]
[373389214,1752983442457,-151.0,0.00019178,2]
[373389216,1752983442467,-151.0,0.00019178,2]
[373389218,1752983442476,-480.0,0.00019178,2]
[373389220,1752983442486,-151.0,0.00019178,2]
[373389221,1752983442495,-300.0,0.00019178,2]
[373389223,1752983442505,-433.5018036,0.00019178,2]
[373389226,1752983442514,-151.0,0.00019178,2]
[373389227,1752983442524,-480.0,0.00019178,2]
[373389230,1752983442533,-480.0,0.00019178,2]
[373389231,1752983442543,-749.25,0.00019178,2]
[373389234,1752983442552,-519.03262114,0.00019178,2]
[373389236,1752983442562,-480.0,0.00019178,2]
[373389238,1752983442571,-480.0,0.00019178,2]
[373389241,1752983442581,-500.0,0.00019178,2]
[373389242,1752983442590,-480.0,0.00019178,2]
[373389245,1752983442599,-506.93565287,0.00019178,2]
[373389246,1752983442608,-480.0,0.00019178,2]
[373389249,1752983442618,-480.0,0.00019178,2]
[373389251,1752983442628,-500.0,0.00019178,2]
[373389253,1752983442637,-670.57,0.00019178,2]
[373389255,1752983442646,-512.21124154,0.00019178,2]
[373389256,1752983442656,-769.19,0.00019178,2]
[373389259,1752983442668,-541.28,0.00019178,2]
[373389261,1752983442677,-634.92,0.00019178,2]
[373389263,1752983442687,-480.0,0.00019178,2]
[373389265,1752983442696,-480.0,0.00019178,2]
[373389267,1752983442705,-480.0,0.00019178,2]
[373389269,1752983442716,-506.5712367,0.00019178,2]
[373389271,1752983442725,-1354.22,0.00019178,2]
[373389273,1752983442735,-500.0,0.00019178,2]
[373389275,1752983442745,-1092.47,0.00019178,2]
[373389277,1752983442754,-511.21,0.00019178,2]
[373389279,1752983442764,-480.0,0.00019178,2]
[373389281,1752983442773,-480.0,0.00019178,2]
[373389283,1752983442782,-480.0,0.00019178,2]
[373389285,1752983442792,-501.62385513,0.00019178,2]
[373389287,1752983442801,-480.0,0.00019178,2]
[373389289,1752983442811,-151.0,0.00019178,2]
[373389291,1752983442820,-151.0,0.00019178,2]
[373389293,1752983442830,-151.0,0.00019178,2]
[373389295,1752983442840,-480.0,0.00019178,2]
[373389297,1752983442849,-618.50492484,0.00019178,2]
[373389299,1752983442859,-480.0,0.00019178,2]
[373389301,1752983442868,-151.0,0.00019178,2]
[373389303,1752983442877,-480.0,0.00019178,2]
[373389305,1752983442887,-500.0,0.00019178,2]
[373389307,1752983442897,-151.0,0.00019178,2]
[373389309,1752983442906,-151.0,0.00019178,2]
[373389311,1752983442928,-151.0,0.00019178,2]
[373389313,1752983442937,-717.34,0.00019178,2]
[373389315,1752983442946,-498.41048504,0.00019178,2]